{"text_format":"1","workbook":"xlsx","n_sheets":2,"sheets":["Teams","ScheduleGrid"],"not_rendered":{"charts":0,"images":1,"macros":1,"external_links":0,"defined_names":12,"comments":0,"pivot_tables":0},"unopened":[],"bounds":{"document_bytes":16777216,"sheet_cells":100000,"rows_first":2000,"rows_last":500,"rows_between":2000,"halvings":0,"cell_chars":16384,"cell_head_chars":4096},"cells_cut":0,"cells_raw":0,"read":"whole","date_system":"1900"}

{"sheet":"Teams","index":0,"n_rows":23,"n_cols":7,"rows_kept":23,"cut":false,"hidden":false,"merged":[]}
[]
[]
[null,null," #","Team Name","Home Field",null,{"$f":"IF(COUNTIF(ScheduleGridRange,\"\")>0,\"Re-Run\",\"OK\")","v":"OK"}]
[null,null,1,"Team 1","Park 1",{"$f":"IF(AND(D3=\"\",D4<>\"\"),\"Please enter teams in order without blanks!\",\"\")","v":""}]
[null,null,{"$f":"+C4+1","v":2},"Team 2","Park 2",""]
[null,null,{"$f":"+C5+1","v":3},"Team 3","Park 3",""]
[null,null,4,"Team 4","Park 4",""]
[null,null,5,"Team 5","Park 4",""]
[null,null,6,null,null,""]
[null,null,7,null,null,""]
[null,null,8,null,null,""]
[null,null,9,null,null,""]
[null,null,10,null,null,""]
[null,null,11,null,null,""]
[null,null,12,null,null,""]
[null,null,13,null,null,""]
[null,null,14,null,null,{"$f":"IF(AND(D16=\"\",D17<>\"\"),\"Please enter teams in order without blanks!\",\"\")","v":""}]
[null,null,15,null,null,{"$f":"IF(AND(D17=\"\",D18<>\"\"),\"Please enter teams in order without blanks!\",\"\")","v":""}]
[null,null,16,null,null,""]
[null,null,17,null,null,""]
[null,null,18,null,null,""]
[null,null,19,null,null,""]
[null,null,20,null,null,{"$f":"IF(AND(D22=\"\",D23<>\"\"),\"Please enter teams in order without blanks!\",\"\")","v":""}]

{"sheet":"ScheduleGrid","index":1,"n_rows":6,"n_cols":6,"rows_kept":6,"cut":false,"hidden":false,"merged":[]}
[null,"Team 1","Team 2","Team 3","Team 4","Team 5"]
["Team 1",0,9,4,3,10]
["Team 2",6,0,3,10,4]
["Team 3",5,2,0,7,6]
["Team 4",2,1,8,0,9]
["Team 5",8,7,1,5,0]